Cogmind - Beta 13 @@@ ROGUE MODE // 2024.05.05 @ 21:11:36 Player: morimori Result: Destroyed by G-34 Mercenary with Small Laser Performance ------------- Evolutions (0) 0 Regions Visited (1) 200 Robots Destroyed (22) 110 Value Destroyed (416) 416 Prototype IDs (0) 0 Alien Tech Used (0) 0 Bonus (0) 0 TOTAL SCORE: 726 Bonus ------- None Cogmind --------- Core Integrity 0/250 Matter 279/300 Energy 239/250 System Corruption 0% Temperature Warm (150) Movement Rolling (135) Ox3 Location -10/Materials Parts ------- > --- POWER (1) -------- Ion Engine > --- PROPULSION (2) --- Wheel Compact Wheel > --- UTILITY (2) ------ Huge Storage Unit Light Armor Plating > --- WEAPON (2) ------- Medium Laser Assault Rifle > --- INVENTORY (25) --- Ion Engine Ion Engine Light Ion Engine Light Nuclear Core Aluminum Leg Aluminum Leg Aluminum Leg Aluminum Leg Aluminum Leg Aluminum Leg Aluminum Leg Wheel Heat Sink Small Storage Unit Large Storage Unit Improved Terrain Scanner Seismic Detector Small Laser Small Laser Particle Gun Assault Rifle Peak State ------------ > --- POWER ------------ Ion Engine > --- PROPULSION ------- Wheel Wheel > --- UTILITY ---------- Huge Storage Unit Seismic Detector > --- WEAPON ----------- Medium Laser Assault Rifle > --- INVENTORY -------- Ion Engine Light Ion Engine Light Nuclear Core Aluminum Leg Aluminum Leg Aluminum Leg Aluminum Leg Aluminum Leg Aluminum Leg Heat Sink Small Storage Unit Large Storage Unit Improved Terrain Scanner Small Laser Particle Gun Assault Rifle [Rating: 9] Favorites ----------- Power Ion Engine Engine Ion Engine Propulsion Wheel Treads Light Treads Leg Aluminum Leg Wheel Wheel Utility Huge Storage Unit Device Seismic Detector Storage Huge Storage Unit Protection Light Armor Plating Weapon Medium Laser Energy Gun Medium Laser Ballistic Gun Light Assault Rifle Build | -11 -10 ------- Run | Yrd Mat Slots Evolved . | . . Power . | . . Propulsion . | . . Utility . | . . Weapon . | . . Parts Attached 18 | 9 9 Power 3 | 1 2 Engine 3 | 1 2 Core . | . . Reactor . | . . Propulsion 7 | 4 3 Treads 1 | 1 . Leg 1 | 1 . Wheel 5 | 2 3 Hover . | . . Flight . | . . Utility 5 | 2 3 Device 1 | 1 . Storage 3 | 1 2 Processor . | . . Hackware . | . . Protection 1 | . 1 Artifact . | . . Weapon 3 | 2 1 Energy Gun 1 | 1 . Energy Cannon . | . . Ballistic Gun 2 | 1 1 Ballistic Cannon . | . . Launcher . | . . Special Weapon . | . . Impact Weapon . | . . Slashing Weapon . | . . Piercing Weapon . | . . Special Melee Weapon . | . . Unidentified Prototypes . | . . Parts Lost 4 | . 4 Power 1 | . 1 Propulsion 2 | . 2 Utility . | . . Weapon 1 | . 1 Highest Loss Streak 4 | . 4 To Critical Strikes . | . . Average Slot Usage (%) 99 | . 99 Engine 14 | . 14 Wheel 28 | . 28 Device 10 | . 10 Storage 14 | . 14 Protection 3 | . 3 Energy Gun 14 | . 14 Ballistic Gun 13 | . 13 Naked Turns . | . . Heaviest Build 92 | 14 92 Greatest Support 26 | 16 26 Greatest Overweight (x) 8 | 3 8 Average Overweight (x) 4 | . 5 Largest Inventory Capacity 25 | 8 25 Average Capacity 20 | 7 24 Most Carried 21 | 8 21 Average Carried 11 | 6 13 Final Capacity 25 | 8 25 Final Carried 21 | 8 21 Class Distribution -------------------- 100% | Mutant Dominant Class ---------------- Mutant | -10/Materials Resources | -11 -10 ----------- Run | Yrd Mat Matter Collected 485 | 308 177 Remotely . | . . Salvage Created 751 | 200 551 Parts 49 | 14 35 Haulers Intercepted . | . . Recyclers Shooed 1 | . 1 Parts Field Recycled . | . . Retrieved Matter . | . . Parts Self-Destructed . | . . Prevented . | . . Kills | -11 -10 ------- Run | Yrd Mat Combat Hostiles Destroyed 11 | . 11 Guns 11 | . 11 Classes Destroyed 8 | 3 5 Worker 2 | 2 . Builder 1 | . 1 Tunneler 3 | 3 . Recycler 2 | 1 1 Operator 1 | . 1 Watcher 2 | . 2 Swarmer 3 | . 3 Grunt 8 | . 8 Best Kill Streak 3 | 3 3 Combat Bots Only 3 | . 3 Max Kills in Single Turn 2 | 1 2 Gunslinging 1 | . 1 Exploded . | . . Melee . | . . Uniques/NPCs Destroyed . | . . Combat | -11 -10 -------- Run | Yrd Mat Hostile Shots Fired 83 | . 83 Missed 23 | . 23 Damage Taken 794 | . 794 Core 256 | . 256 Absorbed by Shields . | . . Core Remaining (%) 100 | 100 . Volleys Fired 80 | 18 62 Largest 2 | 2 2 Hottest 70 | 70 70 Shots Fired 152 | 36 116 Gun 152 | 36 116 Cannon . | . . Launcher . | . . Special . | . . Kinetic 72 | 18 54 Thermal 80 | 18 62 Explosive . | . . Electromagnetic . | . . Robot Hit Streak 8 | 4 8 Robot Miss Streak 8 | 4 8 Penetration Max . | . . Secondary Targets 1 | . 1 Max Gunslinging Chain 1 | . 1 Shots Hit Robots 89 | 20 69 Core Hits 38 | 9 29 Critical Kills . | . . Critical Parts Destroyed . | . . Critical Strikes 6 | 1 5 Burn 6 | 1 5 Melee Attacks . | . . Impact . | . . Slashing . | . . Piercing . | . . Sneak Attacks . | . . Combat Hostiles . | . . Follow-up Attacks . | . . Damage Inflicted 1057 | 190 867 Guns 1057 | 190 867 Cannons . | . . Explosions . | . . Melee . | . . Ramming . | . . Kinetic 404 | 92 312 Thermal 653 | 98 555 Explosive . | . . Electromagnetic . | . . Impact . | . . Slashing . | . . Piercing . | . . Highest Corruption . | . . Average Corruption . | . . Corruption Purged . | . . Corruption Blocked . | . . Overload Shots . | . . Overflow Damage . | . . Projectiles . | . . Explosions . | . . Melee . | . . Knockbacks . | . . Impact . | . . Kinetic . | . . Secondary . | . . Self-Inflicted Damage . | . . Shots . | . . Rammed . | . . Targets Rammed . | . . Kicked . | . . Crushed . | . . Highest Temperature 144 | 100 144 Average Temperature 44 | 38 46 Received Heat Transfer 342 | . 342 Siege Activations . | . . Robots Corrupted . | . . Combat Hostiles . | . . Parts Fried . | . . Impact Corruptions . | . . Robots Melted . | . . Combat Hostiles . | . . Parts Melted 4 | . 4 Heat Transferred 2368 | 370 1998 Parts Sabotaged . | . . Parts Stolen . | . . Parts Stripped . | . . Power Chain Reactions . | . . Alert | -11 -10 ------- Run | Yrd Mat Peak Influence 192 | 30 192 Initial 19 | . 19 Average 59 | 17 72 Maximum Alert Level . | . . Low Security (%) 100 | 100 100 Level 1 . | . . Level 2 . | . . Level 3 . | . . Level 4 . | . . Level 5 . | . . High Security . | . . Max Security . | . . Squads Dispatched 2 | . 2 Investigation 1 | . 1 Extermination . | . . Reinforcement 1 | . 1 Assault . | . . Garrison . | . . Intercept . | . . Searches Triggered . | . . Construction Impeded . | . . Haulers Reinforced . | . . Active Scanning Responses . | . . Cargo Convoy Interrupts . | . . Stealth | -11 -10 --------- Run | Yrd Mat Distress Signals 3 | . 3 Communications Jammed . | . . Distress Signals . | . . Times Spotted 22 | . 22 Peak Tracking Total 6 | . 6 Tactical Retreats 2 | . 2 Traps | -11 -10 ------- Run | Yrd Mat Traps Triggered 1 | . 1 Indirectly . | . . Trap Hack Attempts . | . . Triggered . | . . Disarmed . | . . Reprogrammed . | . . Reused . | . . Traps Extracted . | . . Installed . | . . Triggered . | . . Machines | -11 -10 ---------- Run | Yrd Mat Machines Disabled 1 | . 1 Max in Single Turn 1 | . 1 Machines Repaired . | . . Machines Dismantled . | . . Machines Sabotaged . | . . Overloaded Fab Kills . | . . Hacking | -11 -10 --------- Run | Yrd Mat Machines Accessed 4 | . 4 Terminals 4 | . 4 Fabricators . | . . Repair Stations . | . . Recycling Units . | . . Scanalyzers . | . . Garrison Access . | . . Total Hacks 11 | . 11 Successful 6 | . 6 Failed 5 | . 5 Catastrophic . | . . Database Lockouts . | . . Manual 9 | . 9 Terminals 11 | . 11 Fabricators . | . . Repair Stations . | . . Recycling Units . | . . Scanalyzers . | . . Garrison Access . | . . Terminal Hacks 4 | . 4 Terminal Index 1 | . 1 Unreport Threat 1 | . 1 Locate Traps 1 | . 1 Zone Layout 1 | . 1 Fabricator Hacks . | . . Repair Station Hacks . | . . Recycling Unit Hacks . | . . Scanalyzer . | . . Garrison Access Hacks . | . . Unauthorized Hacks 2 | . 2 Terminals 2 | . 2 Botnet 1 | . 1 Operators 1 | . 1 Fabricators . | . . Repair Stations . | . . Recycling Units . | . . Scanalyzers . | . . Garrison Access . | . . Data Cores Recovered . | . . Used . | . . Hacking Detections 4 | . 4 Full Trace Events . | . . Feedback Events . | . . Feedback Blocked . | . . Robot Schematics Acquired . | . . Robots Built . | . . Authchips . | . . Time . | . . Total Robot Build Rating . | . . Part Schematics Acquired . | . . Parts Built . | . . Authchips . | . . Time . | . . Total Part Build Rating . | . . Parts Repaired . | . . Time . | . . Parts Recycled . | . . Recycled Matter . | . . Retrieved Matter . | . . Retrieved Components . | . . Parts Scanalyzed . | . . Part Schematics Acquired . | . . Parts Damaged . | . . Bothacking | -11 -10 ------------ Run | Yrd Mat Used RIF Installer . | . . Robots Hacked . | . . Non-combat . | . . Combat . | . . Robot Hacks Applied . | . . Relay Couplers Released . | . . Fabnet Peak Effective % . | . . Robots Rewired . | . . Allies Hacked . | . . Hacks Repelled . | . . Allies | -11 -10 -------- Run | Yrd Mat Total Allies . | . . Largest Group . | . . Highest-Rated Group . | . . Highest-Rated Ally . | . . Total Orders . | . . Ally Attacks . | . . Total Damage . | . . Kills . | . . Allies Corrupted . | . . Allies Melted . | . . Intel | -11 -10 ------- Run | Yrd Mat Robot Analysis Total . | . . Derelict Logs Recovered . | . . Drone Launches . | . . Drone Recoveries . | . . Exploration | -11 -10 ------------- Run | Yrd Mat Turns Passed 927 | 217 710 Spaces Moved 398 | 131 267 Core 7 | 7 . Treads . | . . Legs . | . . Wheels 391 | 124 267 Hover . | . . Flight . | . . Fastest Speed 50 | 50 95 Average Speed 143 | 95 166 Slowest Speed 200 | 200 200 Overloaded Moves . | . . Propulsion Burnouts . | . . Robots Hopped . | . . Cave-ins Triggered . | . . Exploration Rate (%) 18 | 6 31 Regions Visited 1 Branch Regions . Pre-discovered Areas . | . . Known Exits Taken . | . . Unknown Exits Taken 1 | 1 . Scrap Searched . | . . Spaces Dug . | . . Terrain Destroyed . | . . Melee . | . . Projectile . | . . AOE . | . . Terrain Rammed . | . . Walls Destroyed . | . . Machines Disabled . | . . Actions | -11 -10 --------- Run | Yrd Mat Total 608 | 188 420 Wait 85 | 19 66 Move 397 | 130 267 Hop . | . . Pick Up 23 | 8 15 Fast Attach 9 | 9 . Attach 4 | . 4 Detach 2 | 2 . Swap 5 | . 5 Drop 3 | 2 1 Fire 80 | 18 62 Melee . | . . Ram . | . . Kick . | . . Crush . | . . Escape Stasis . | . . Rewire . | . . Trap . | . . Miscellaneous . | . . Route ------- -11/Scrapyard -10/Materials (discovered 2 exits: [Mat] / [*Min]) History --------- Turn | Location | Event 29 | -11/Scrapyard | Discovered new exit (range 15) 218 | -11/Scrapyard | Entered Materials 307 | -10/Materials | Build established: Mutant 484 | -10/Materials | Core integrity fell below 50% 646 | -10/Materials | Core integrity fell below 20% 658 | -10/Materials | Lost 4 parts (1p2n1w) 770 | -10/Materials | Discovered new exit (range 12) 801 | -10/Materials | Discovered new exit (range 14) 928 | -10/Materials | Destroyed by G-34 Mercenary with Small Laser Last Messages --------------- 00873_ R-06 Scavenger suffers critical hit (Burn). 00879_ R-06 Scavenger destroyed. 00881_ K-01 Serf collects debris. 00882_ Acquired 39 matter. 00886_ K-01 Serf collects debris. 00887_ W-16 Scout destroyed. 00887_ K-01 Serf collects debris. 00888_ Acquired 13 matter. 00888_ R-06 Scavenger collects Com. Wheel. 00889_ K-01 Serf collects debris. 00892_ R-06 Scavenger collects Hover Unit. 00893_ K-01 Serf collects debris. 00896_ R-06 Scavenger collects Hover Unit. 00905_ K-01 Serf cleans the Hadron Collector. 00907_ Triggered Alarm Trap. 00907_ An alarm sounds. 00907_ ALERT: Alarm triggered, dispatching investigation squad. 00909_ U-05 Engineer lays Concrete. Map ----- +----------------------------------------------------+ | | | | | | | | | | | ???????????????########?????????????????#####????? | | ???????????????# #?????????????????# ????? | | ???????????????#"" #?????????????????# """????? | | ???????????????#"Y #?????????????????# """????? | | ??????????????##"" #?????????????????# """?""?? | | ??????????????## #?????????????????# ? ?? | | ??????????????## #?????????????##### ? ?? | | ??????????????#####+####????????????# #######+## | | ??????????????## #????????????# " # # | | ??????????????## < #????????????# T # # | | ??????????????## #????????????# " # + | | ??????????????###### ^ #???#####????# # # | | ??????????????#????#g^ #???#"""#????# # # | | ??????????????#????# #####"T"###### ######^^^^ | | ????????????######## ###+####### | | ???????????? | | ??????????? /% | | ?????????????? / | | ??????????????#### / ############ | | ?????????????? ## #?????????## | | ?????????????? ## @ #?????????# | | ?????????????? ## ########### | | ??????????????" ## """ """ % %# ## | | ??????????????" ## u""" """ # "" """ ## | | ??????????????" ## """ """ # "T """ ## | | ?????????????? ## """ """ # "" """ ## | | ??????????????" ## a + ## | | ??????????????" ## # """ ### | | ??????????????" ## !%%#= """ ## | | ??????????????????? ########### !!## """ + | | ???????????????????? ??????????# ## ## | | ??????????????????? ??????????# ############# | | ???????????????????? ???????????# #???????????# | | ???????????????????? ????????????# #???????????# | | ?????????????????????????????????" ???????????# | | ???????????????????????????????? ???????????+ | | ???????????????????????????????"| #??????????# | | ???????????????????????????????"" < #??????????# | | ???????????????????????????????"| #??????????? | | ???????????????????????????????" #??????????? | | ???????????????????????????????" " #??????????? | | ???????????????????????????????### ##??????????? | | ?????????????????????????????????# ????????????? | | ?????????????????????????????????? ????????????? | | ?????????????????????????????????? ????????????? | +----------------------------------------------------+ Best States ------------- Heat Dissipation 25 Energy Generation 10 Energy Capacity 250 Matter Stores 300 Matter Capacity 300 Sight Range 16 Terrain Scan Density 10 Armor Coverage 150 Evasion (%) 41 Item Schematics ----------------- None Robot Schematics ------------------ None Fabricated ------------ Nothing Alien Tech Used ----------------- None Achievements -------------- None Challenges ------------ None Game ------ Seed AblativeArmoredDriver Manual? 0 Play Time 00:11:00 Cumulative 169.6 hours Start 2024.05.05 @ 21:04:48 End 2024.05.05 @ 21:11:36 Sessions 1 Manual Loads 0 Difficulty Rogue Special Mode None Game No. 100 Rogue 100 Adventurer 0 Explorer 0 Win Type - Total 2 Types 2/0/0/0/0/0/0/0/0 Lore% 52 Gallery% 55 Achievement% 48 Wizard Run 0 Options --------- Layout 1 ASCII 0 Keyboard 1 Movement Vi Keybinds 0 Fullscreen 2 Font 24/Smallcaps Map View 50x35 Zoom Use 0% Tactical HUD 1 Map Filters NONE Filters NONE Steam 1 RUN: 2616811e-fff1-42e1-8748-2ac2e4878993